Workbook

Sheet Úvodní list
B4: ČESKÉ VYSOKÉ UČENÍ TECHNICKÉ
B6: FAKULTA STAVEBNÍ
B8: KATEDRA TECHNOLOGIE STAVEB
B23: DIPLOMOVÁ PRÁCE
B25: DIGITALIZACE KONTROLY KVALITY VE STAVEBNICTVÍ
B27: VÍCEKRITERIÁLNÍ ANALÝZA
B30: Bc. Milan Červený
B32: 2020

Sheet Informace o programech
A1: Požadavky | C1: Dalux | D1: PlanRadar basic | E1: PlanRadar pro | F1: Fieldwire | G1: Construction Manager | H1: Mobile Field Manager | I1: Plan Grid | J1: Vím o všem
A2: 1. | B2: Cena [Kč] | C2: - | D2: =29*26.4 -> 765.6 | E2: =99*26.4 -> 2613.6 | F2: =49*26.4 -> 1293.6 | G2: =15*22.3 -> 334.5 | H2: - | I2: =59*22.3 -> 1315.7 | J2: 2490
A3: 2. | B3: Návod | C3: Ano | D3: Ano | E3: Ano | F3: Ano | G3: Ano | H3: Ano | I3: Ano | J3: Ano
A4: 3. | B4: Podpora [Dny] | C4: 7+ | D4: 3 | E4: 3 | F4: 1 | G4: 7+ | H4: 1 | I4: 7+ | J4: 7+
A5: 4. | B5: KZP | C5: Ano | D5: Ano | E5: Ano | F5: Ano | G5: Ano | H5: Ne | I5: Ano | J5: Ne
A6: 5. | B6: 3D | C6: Ano | D6: Ne | E6: Ano | F6: Ano | G6: Ne | H6: Ano | I6: Ano | J6: Ne
A7: 6. | B7: Úkoly | C7: Ano | D7: Ano | E7: Ano | F7: Ano | G7: Ano | H7: Ano | I7: Ano | J7: Ano
A8: 7. | B8: Intuitivnost | C8: 3 | D8: 5 | E8: 5 | F8: 2 | G8: 1 | H8: 1 | I8: 4 | J8: 2
A9: 8. | B9: Reakce Podpory | C9: Ano | D9: Ano | E9: Ano | F9: Ano | G9: Ne | H9: Ne | I9: Ne | J9: Ne
A10: 9. | B10: Aplikace | C10: Ano | D10: Ano | E10: Ano | F10: Ano | G10: Ano | H10: Ne | I10: Ano | J10: Ano
A11: 10. | B11: Offline | C11: Ano | D11: Ano | E11: Ano | F11: Ano | G11: Ano | H11: Ne | I11: Ano | J11: Ano

Sheet Temp (hidden)
B3: Povaha | D3: Hledisko
B4: Min | D4: Kvant
B5: Max | D5: Kvalit

Sheet Vícekriteriální analýza hor. (hidden)
A1: Kritérium | B1: Pořadí dle důležitosti | C1: Povaha | D1: Hledisko | E1: Váha | F1: Varianta A: Dalux | I1: Varianta B: PlanRadar | L1: Varianta C: Fieldwire | O1: Varianta D: Construction Manager | R1: Varianta E: Mobile Field Manager | U1: Varianta F: PlanGrid | X1: Varianta G: Vím o všem
F2: Hodnota | G2: Pořadí | H2: Body | I2: Hodnota | J2: Pořadí | K2: Body | L2: Hodnota | M2: Pořadí | N2: Body | O2: Hodnota | P2: Pořadí | Q2: Body | R2: Hodnota | S2: Pořadí | T2: Body | U2: Hodnota | V2: Pořadí | W2: Body | X2: Hodnota | Y2: Pořadí | Z2: Body
A3: Cena [Kč] | B3: 8 | C3: Min | D3: Kvant | E3: =(MAX($B$3:$B$10)+1-B3)/$B$11 -> 0.02777777778 | F3: 0 | G3: =IF($C3="Min",_xlfn.RANK.EQ(F3,($F3,$I3,$L3,$O3,$R3,$U3,$X3),0),_xlfn.RANK.EQ(F3,($F3,$I3,$L3,$O3,$R3,$U3,$X3),1)) -> 6 | H3: =$E3*G3 -> 0.1666666667 | I3: 2614 | J3: =IF($C3="Min",_xlfn.RANK.EQ(I3,($F3,$I3,$L3,$O3,$R3,$U3,$X3),0),_xlfn.RANK.EQ(I3,($F3,$I3,$L3,$O3,$R3,$U3,$X3),1)) -> 1 | K3: =$E3*J3 -> 0.02777777778 | L3: 1294 | M3: =IF($C3="Min",_xlfn.RANK.EQ(L3,($F3,$I3,$L3,$O3,$R3,$U3,$X3),0),_xlfn.RANK.EQ(L3,($F3,$I3,$L3,$O3,$R3,$U3,$X3),1)) -> 4 | N3: =$E3*M3 -> 0.1111111111 | O3: 335 | P3: =IF($C3="Min",_xlfn.RANK.EQ(O3,($F3,$I3,$L3,$O3,$R3,$U3,$X3),0),_xlfn.RANK.EQ(O3,($F3,$I3,$L3,$O3,$R3,$U3,$X3),1)) -> 5 | Q3: =$E3*P3 -> 0.1388888889 | R3: 0 | S3: =IF($C3="Min",_xlfn.RANK.EQ(R3,($F3,$I3,$L3,$O3,$R3,$U3,$X3),0),_xlfn.RANK.EQ(R3,($F3,$I3,$L3,$O3,$R3,$U3,$X3),1)) -> 6 | T3: =$E3*S3 -> 0.1666666667 | U3: 1316 | V3: =IF($C3="Min",_xlfn.RANK.EQ(U3,($F3,$I3,$L3,$O3,$R3,$U3,$X3),0),_xlfn.RANK.EQ(U3,($F3,$I3,$L3,$O3,$R3,$U3,$X3),1)) -> 3 | W3: =$E3*V3 -> 0.08333333333 | X3: 2490 | Y3: =IF($C3="Min",_xlfn.RANK.EQ(X3,($F3,$I3,$L3,$O3,$R3,$U3,$X3),0),_xlfn.RANK.EQ(X3,($F3,$I3,$L3,$O3,$R3,$U3,$X3),1)) -> 2 | Z3: =$E3*Y3 -> 0.05555555556
A4: Reakce podpory [Den] | B4: 6 | C4: Min | D4: Kvalit | E4: =(MAX($B$3:$B$10)+1-B4)/$B$11 -> 0.08333333333 | F4: 5 | G4: =IF($C4="Min",_xlfn.RANK.EQ(F4,($F4,$I4,$L4,$O4,$R4,$U4,$X4),0),_xlfn.RANK.EQ(F4,($F4,$I4,$L4,$O4,$R4,$U4,$X4),1)) -> 4 | H4: 0.3333333333 | I4: 1.83 | J4: =IF($C4="Min",_xlfn.RANK.EQ(I4,($F4,$I4,$L4,$O4,$R4,$U4,$X4),0),_xlfn.RANK.EQ(I4,($F4,$I4,$L4,$O4,$R4,$U4,$X4),1)) -> 5 | K4: 0.4166666667 | L4: 0.25 | M4: =IF($C4="Min",_xlfn.RANK.EQ(L4,($F4,$I4,$L4,$O4,$R4,$U4,$X4),0),_xlfn.RANK.EQ(L4,($F4,$I4,$L4,$O4,$R4,$U4,$X4),1)) -> 6 | N4: 0.5 | O4: 7 | P4: =IF($C4="Min",_xlfn.RANK.EQ(O4,($F4,$I4,$L4,$O4,$R4,$U4,$X4),0),_xlfn.RANK.EQ(O4,($F4,$I4,$L4,$O4,$R4,$U4,$X4),1)) -> 1 | Q4: 0.08333333333 | R4: 0.083 | S4: =IF($C4="Min",_xlfn.RANK.EQ(R4,($F4,$I4,$L4,$O4,$R4,$U4,$X4),0),_xlfn.RANK.EQ(R4,($F4,$I4,$L4,$O4,$R4,$U4,$X4),1)) -> 7 | T4: 0.5833333333 | U4: 6 | V4: =IF($C4="Min",_xlfn.RANK.EQ(U4,($F4,$I4,$L4,$O4,$R4,$U4,$X4),0),_xlfn.RANK.EQ(U4,($F4,$I4,$L4,$O4,$R4,$U4,$X4),1)) -> 3 | W4: 0.25 | X4: 7 | Y4: =IF($C4="Min",_xlfn.RANK.EQ(X4,($F4,$I4,$L4,$O4,$R4,$U4,$X4),0),_xlfn.RANK.EQ(X4,($F4,$I4,$L4,$O4,$R4,$U4,$X4),1)) -> 1 | Z4: 0.08333333333
A5: Počet stažení v mobilu [tis] | B5: 7 | C5: Max | D5: Kvant | E5: 0.05555555556 | F5: 50 | G5: =IF($C5="Min",_xlfn.RANK.EQ(F5,($F5,$I5,$L5,$O5,$R5,$U5,$X5),0),_xlfn.RANK.EQ(F5,($F5,$I5,$L5,$O5,$R5,$U5,$X5),1)) -> 2 | H5: 0.1111111111 | I5: 100 | J5: =IF($C5="Min",_xlfn.RANK.EQ(I5,($F5,$I5,$L5,$O5,$R5,$U5,$X5),0),_xlfn.RANK.EQ(I5,($F5,$I5,$L5,$O5,$R5,$U5,$X5),1)) -> 5 | K5: 0.2777777778 | L5: 500 | M5: =IF($C5="Min",_xlfn.RANK.EQ(L5,($F5,$I5,$L5,$O5,$R5,$U5,$X5),0),_xlfn.RANK.EQ(L5,($F5,$I5,$L5,$O5,$R5,$U5,$X5),1)) -> 6 | N5: 0.3333333333 | O5: 50 | P5: =IF($C5="Min",_xlfn.RANK.EQ(O5,($F5,$I5,$L5,$O5,$R5,$U5,$X5),0),_xlfn.RANK.EQ(O5,($F5,$I5,$L5,$O5,$R5,$U5,$X5),1)) -> 2 | Q5: 0.1111111111 | R5: 50 | S5: =IF($C5="Min",_xlfn.RANK.EQ(R5,($F5,$I5,$L5,$O5,$R5,$U5,$X5),0),_xlfn.RANK.EQ(R5,($F5,$I5,$L5,$O5,$R5,$U5,$X5),1)) -> 2 | T5: 0.1111111111 | U5: 500 | V5: =IF($C5="Min",_xlfn.RANK.EQ(U5,($F5,$I5,$L5,$O5,$R5,$U5,$X5),0),_xlfn.RANK.EQ(U5,($F5,$I5,$L5,$O5,$R5,$U5,$X5),1)) -> 6 | W5: 0.3333333333 | X5: 1 | Y5: =IF($C5="Min",_xlfn.RANK.EQ(X5,($F5,$I5,$L5,$O5,$R5,$U5,$X5),0),_xlfn.RANK.EQ(X5,($F5,$I5,$L5,$O5,$R5,$U5,$X5),1)) -> 1 | Z5: 0.05555555556
A6: 3D model [ano/ne] | B6: 2 | C6: Max | D6: Kvant | E6: 0.1944444444 | F6: 1 | G6: =IF($C6="Min",_xlfn.RANK.EQ(F6,($F6,$I6,$L6,$O6,$R6,$U6,$X6),0),_xlfn.RANK.EQ(F6,($F6,$I6,$L6,$O6,$R6,$U6,$X6),1)) -> 3 | H6: 0.5833333333 | I6: 1 | J6: =IF($C6="Min",_xlfn.RANK.EQ(I6,($F6,$I6,$L6,$O6,$R6,$U6,$X6),0),_xlfn.RANK.EQ(I6,($F6,$I6,$L6,$O6,$R6,$U6,$X6),1)) -> 3 | K6: 0.5833333333 | L6: 1 | M6: =IF($C6="Min",_xlfn.RANK.EQ(L6,($F6,$I6,$L6,$O6,$R6,$U6,$X6),0),_xlfn.RANK.EQ(L6,($F6,$I6,$L6,$O6,$R6,$U6,$X6),1)) -> 3 | N6: 0.5833333333 | O6: 0 | P6: =IF($C6="Min",_xlfn.RANK.EQ(O6,($F6,$I6,$L6,$O6,$R6,$U6,$X6),0),_xlfn.RANK.EQ(O6,($F6,$I6,$L6,$O6,$R6,$U6,$X6),1)) -> 1 | Q6: 0.1944444444 | R6: 1 | S6: =IF($C6="Min",_xlfn.RANK.EQ(R6,($F6,$I6,$L6,$O6,$R6,$U6,$X6),0),_xlfn.RANK.EQ(R6,($F6,$I6,$L6,$O6,$R6,$U6,$X6),1)) -> 3 | T6: 0.5833333333 | U6: 1 | V6: =IF($C6="Min",_xlfn.RANK.EQ(U6,($F6,$I6,$L6,$O6,$R6,$U6,$X6),0),_xlfn.RANK.EQ(U6,($F6,$I6,$L6,$O6,$R6,$U6,$X6),1)) -> 3 | W6: 0.5833333333 | X6: 0 | Y6: =IF($C6="Min",_xlfn.RANK.EQ(X6,($F6,$I6,$L6,$O6,$R6,$U6,$X6),0),_xlfn.RANK.EQ(X6,($F6,$I6,$L6,$O6,$R6,$U6,$X6),1)) -> 1 | Z6: 0.1944444444
A7: Intuitivnost | B7: 3 | C7: Max | D7: Kvalit | E7: 0.1666666667 | F7: 4 | G7: =IF($C7="Min",_xlfn.RANK.EQ(F7,($F7,$I7,$L7,$O7,$R7,$U7,$X7),0),_xlfn.RANK.EQ(F7,($F7,$I7,$L7,$O7,$R7,$U7,$X7),1)) -> 5 | H7: 0.8333333333 | I7: 5 | J7: =IF($C7="Min",_xlfn.RANK.EQ(I7,($F7,$I7,$L7,$O7,$R7,$U7,$X7),0),_xlfn.RANK.EQ(I7,($F7,$I7,$L7,$O7,$R7,$U7,$X7),1)) -> 7 | K7: 1.166666667 | L7: 2 | M7: =IF($C7="Min",_xlfn.RANK.EQ(L7,($F7,$I7,$L7,$O7,$R7,$U7,$X7),0),_xlfn.RANK.EQ(L7,($F7,$I7,$L7,$O7,$R7,$U7,$X7),1)) -> 3 | N7: 0.5 | O7: 1 | P7: =IF($C7="Min",_xlfn.RANK.EQ(O7,($F7,$I7,$L7,$O7,$R7,$U7,$X7),0),_xlfn.RANK.EQ(O7,($F7,$I7,$L7,$O7,$R7,$U7,$X7),1)) -> 1 | Q7: 0.1666666667 | R7: 1 | S7: =IF($C7="Min",_xlfn.RANK.EQ(R7,($F7,$I7,$L7,$O7,$R7,$U7,$X7),0),_xlfn.RANK.EQ(R7,($F7,$I7,$L7,$O7,$R7,$U7,$X7),1)) -> 1 | T7: 0.1666666667 | U7: 4 | V7: =IF($C7="Min",_xlfn.RANK.EQ(U7,($F7,$I7,$L7,$O7,$R7,$U7,$X7),0),_xlfn.RANK.EQ(U7,($F7,$I7,$L7,$O7,$R7,$U7,$X7),1)) -> 5 | W7: 0.8333333333 | X7: 2 | Y7: =IF($C7="Min",_xlfn.RANK.EQ(X7,($F7,$I7,$L7,$O7,$R7,$U7,$X7),0),_xlfn.RANK.EQ(X7,($F7,$I7,$L7,$O7,$R7,$U7,$X7),1)) -> 3 | Z7: 0.5
A8: Dostupnost informací web | B8: 5 | C8: Max | D8: Kvalit | E8: 0.1111111111 | F8: 5 | G8: =IF($C8="Min",_xlfn.RANK.EQ(F8,($F8,$I8,$L8,$O8,$R8,$U8,$X8),0),_xlfn.RANK.EQ(F8,($F8,$I8,$L8,$O8,$R8,$U8,$X8),1)) -> 7 | H8: 0.7777777778 | I8: 4 | J8: =IF($C8="Min",_xlfn.RANK.EQ(I8,($F8,$I8,$L8,$O8,$R8,$U8,$X8),0),_xlfn.RANK.EQ(I8,($F8,$I8,$L8,$O8,$R8,$U8,$X8),1)) -> 5 | K8: 0.5555555556 | L8: 3 | M8: =IF($C8="Min",_xlfn.RANK.EQ(L8,($F8,$I8,$L8,$O8,$R8,$U8,$X8),0),_xlfn.RANK.EQ(L8,($F8,$I8,$L8,$O8,$R8,$U8,$X8),1)) -> 4 | N8: 0.4444444444 | O8: 1 | P8: =IF($C8="Min",_xlfn.RANK.EQ(O8,($F8,$I8,$L8,$O8,$R8,$U8,$X8),0),_xlfn.RANK.EQ(O8,($F8,$I8,$L8,$O8,$R8,$U8,$X8),1)) -> 1 | Q8: 0.1111111111 | R8: 2 | S8: =IF($C8="Min",_xlfn.RANK.EQ(R8,($F8,$I8,$L8,$O8,$R8,$U8,$X8),0),_xlfn.RANK.EQ(R8,($F8,$I8,$L8,$O8,$R8,$U8,$X8),1)) -> 2 | T8: 0.2222222222 | U8: 2 | V8: =IF($C8="Min",_xlfn.RANK.EQ(U8,($F8,$I8,$L8,$O8,$R8,$U8,$X8),0),_xlfn.RANK.EQ(U8,($F8,$I8,$L8,$O8,$R8,$U8,$X8),1)) -> 2 | W8: 0.2222222222 | X8: 4 | Y8: =IF($C8="Min",_xlfn.RANK.EQ(X8,($F8,$I8,$L8,$O8,$R8,$U8,$X8),0),_xlfn.RANK.EQ(X8,($F8,$I8,$L8,$O8,$R8,$U8,$X8),1)) -> 5 | Z8: 0.5555555556
A9: Kontrolní a zkušební plán | B9: 1 | C9: Max | D9: Kvalit | E9: 0.2222222222 | F9: 1 | G9: =IF($C9="Min",_xlfn.RANK.EQ(F9,($F9,$I9,$L9,$O9,$R9,$U9,$X9),0),_xlfn.RANK.EQ(F9,($F9,$I9,$L9,$O9,$R9,$U9,$X9),1)) -> 3 | H9: 0.6666666667 | I9: 1 | J9: =IF($C9="Min",_xlfn.RANK.EQ(I9,($F9,$I9,$L9,$O9,$R9,$U9,$X9),0),_xlfn.RANK.EQ(I9,($F9,$I9,$L9,$O9,$R9,$U9,$X9),1)) -> 3 | K9: 0.6666666667 | L9: 1 | M9: =IF($C9="Min",_xlfn.RANK.EQ(L9,($F9,$I9,$L9,$O9,$R9,$U9,$X9),0),_xlfn.RANK.EQ(L9,($F9,$I9,$L9,$O9,$R9,$U9,$X9),1)) -> 3 | N9: 0.6666666667 | O9: 1 | P9: =IF($C9="Min",_xlfn.RANK.EQ(O9,($F9,$I9,$L9,$O9,$R9,$U9,$X9),0),_xlfn.RANK.EQ(O9,($F9,$I9,$L9,$O9,$R9,$U9,$X9),1)) -> 3 | Q9: 0.6666666667 | R9: 0 | S9: =IF($C9="Min",_xlfn.RANK.EQ(R9,($F9,$I9,$L9,$O9,$R9,$U9,$X9),0),_xlfn.RANK.EQ(R9,($F9,$I9,$L9,$O9,$R9,$U9,$X9),1)) -> 1 | T9: 0.2222222222 | U9: 1 | V9: =IF($C9="Min",_xlfn.RANK.EQ(U9,($F9,$I9,$L9,$O9,$R9,$U9,$X9),0),_xlfn.RANK.EQ(U9,($F9,$I9,$L9,$O9,$R9,$U9,$X9),1)) -> 3 | W9: 0.6666666667 | X9: 0 | Y9: =IF($C9="Min",_xlfn.RANK.EQ(X9,($F9,$I9,$L9,$O9,$R9,$U9,$X9),0),_xlfn.RANK.EQ(X9,($F9,$I9,$L9,$O9,$R9,$U9,$X9),1)) -> 1 | Z9: 0.2222222222
A10: Návod | B10: 4 | C10: Max | D10: Kvalit | E10: 0.1388888889 | F10: 3 | G10: =IF($C10="Min",_xlfn.RANK.EQ(F10,($F10,$I10,$L10,$O10,$R10,$U10,$X10),0),_xlfn.RANK.EQ(F10,($F10,$I10,$L10,$O10,$R10,$U10,$X10),1)) -> 6 | H10: 0.8333333333 | I10: 2 | J10: =IF($C10="Min",_xlfn.RANK.EQ(I10,($F10,$I10,$L10,$O10,$R10,$U10,$X10),0),_xlfn.RANK.EQ(I10,($F10,$I10,$L10,$O10,$R10,$U10,$X10),1)) -> 4 | K10: 0.5555555556 | L10: 1 | M10: =IF($C10="Min",_xlfn.RANK.EQ(L10,($F10,$I10,$L10,$O10,$R10,$U10,$X10),0),_xlfn.RANK.EQ(L10,($F10,$I10,$L10,$O10,$R10,$U10,$X10),1)) -> 2 | N10: 0.2777777778 | O10: 0 | P10: =IF($C10="Min",_xlfn.RANK.EQ(O10,($F10,$I10,$L10,$O10,$R10,$U10,$X10),0),_xlfn.RANK.EQ(O10,($F10,$I10,$L10,$O10,$R10,$U10,$X10),1)) -> 1 | Q10: 0.1388888889 | R10: 1 | S10: =IF($C10="Min",_xlfn.RANK.EQ(R10,($F10,$I10,$L10,$O10,$R10,$U10,$X10),0),_xlfn.RANK.EQ(R10,($F10,$I10,$L10,$O10,$R10,$U10,$X10),1)) -> 2 | T10: 0.2777777778 | U10: 2 | V10: =IF($C10="Min",_xlfn.RANK.EQ(U10,($F10,$I10,$L10,$O10,$R10,$U10,$X10),0),_xlfn.RANK.EQ(U10,($F10,$I10,$L10,$O10,$R10,$U10,$X10),1)) -> 4 | W10: 0.5555555556 | X10: 3 | Y10: =IF($C10="Min",_xlfn.RANK.EQ(X10,($F10,$I10,$L10,$O10,$R10,$U10,$X10),0),_xlfn.RANK.EQ(X10,($F10,$I10,$L10,$O10,$R10,$U10,$X10),1)) -> 6 | Z10: 0.8333333333
B11: =SUM(B3:B10) -> 36 | E11: =SUM(E3:E10) -> 1 | H11: =SUM(H3:H10) -> 4.305555556 | K11: =SUM(K3:K10) -> 4.25 | N11: =SUM(N3:N10) -> 3.416666667 | Q11: =SUM(Q3:Q10) -> 1.611111111 | T11: =SUM(T3:T10) -> 2.333333333 | W11: =SUM(W3:W10) -> 3.527777778 | Z11: =SUM(Z3:Z10) -> 2.5

Sheet Vícekriteriální analýza
A1: Kritérium | B1: Pořadí dle důležitosti | C1: Povaha | D1: Hledisko | E1: Váha
A3: Cena [Kč] | B3: 1 | C3: Min | D3: Kvant | E3: =(MAX($B$3:$B$10)+1-B3)/$B$11 -> 0.2222222222
A4: Reakce podpory [Den] | B4: 2 | C4: Min | D4: Kvalit | E4: =(MAX($B$3:$B$10)+1-B4)/$B$11 -> 0.1944444444
A5: Počet stažení v mobilu [tis] | B5: 3 | C5: Max | D5: Kvant | E5: =(MAX($B$3:$B$10)+1-B5)/$B$11 -> 0.1666666667
A6: 3D model [ano/ne] | B6: 4 | C6: Max | D6: Kvant | E6: 0.1388888889
A7: Intuitivnost | B7: 5 | C7: Max | D7: Kvalit | E7: 0.1111111111
A8: Dostupnost informací web | B8: 6 | C8: Max | D8: Kvalit | E8: 0.08333333333
A9: Kontrolní a zkušební plán | B9: 7 | C9: Max | D9: Kvalit | E9: 0.05555555556
A10: Návod | B10: 8 | C10: Max | D10: Kvalit | E10: 0.02777777778
B11: =SUM(B3:B10) -> 36 | E11: =SUM(E3:E10) -> 1
A14: Kritérium | B14: Pořadí dle důležitosti | C14: Varianta A: Dalux | F14: Varianta B: PlanRadar
C15: Hodnota | D15: Pořadí | E15: Body | F15: Hodnota | G15: Pořadí | H15: Body
A16: Cena [Kč] | B16: =B3 -> 1 | C16: 0 | D16: =IF($C3="Min",_xlfn.RANK.EQ(C16,($C16,$F16,$C29,$F29,$C46,$F46,$C59),0),_xlfn.RANK.EQ(C16,($C16,$F16,$C29,$F29,$C46,$F46,$C59),1)) -> 6 | E16: =$E3*D16 -> 1.333333333 | F16: 2614 | G16: =IF($C3="Min",_xlfn.RANK.EQ(F16,($C16,$F16,$C29,$F29,$C46,$F46,$C59),0),_xlfn.RANK.EQ(F16,($C16,$F16,$C29,$F29,$C46,$F46,$C59),1)) -> 1 | H16: =$E3*G16 -> 0.2222222222
A17: Reakce podpory [Den] | B17: =B4 -> 2 | C17: 5 | D17: =IF($C4="Min",_xlfn.RANK.EQ(C17,($C17,$F17,$C30,$F30,$C47,$F47,$C60),0),_xlfn.RANK.EQ(C17,($C17,$F17,$C30,$F30,$C47,$F47,$C60),1)) -> 4 | E17: 0.7777777778 | F17: 1.83 | G17: =IF($C4="Min",_xlfn.RANK.EQ(F17,($C17,$F17,$C30,$F30,$C47,$F47,$C60),0),_xlfn.RANK.EQ(F17,($C17,$F17,$C30,$F30,$C47,$F47,$C60),1)) -> 5 | H17: =$E4*G17 -> 0.9722222222
A18: Počet stažení v mobilu [tis] | B18: 3 | C18: 50 | D18: =IF($C5="Min",_xlfn.RANK.EQ(C18,($C18,$F18,$C31,$F31,$C48,$F48,$C61),0),_xlfn.RANK.EQ(C18,($C18,$F18,$C31,$F31,$C48,$F48,$C61),1)) -> 2 | E18: 0.3333333333 | F18: 100 | G18: =IF($C5="Min",_xlfn.RANK.EQ(F18,($C18,$F18,$C31,$F31,$C48,$F48,$C61),0),_xlfn.RANK.EQ(F18,($C18,$F18,$C31,$F31,$C48,$F48,$C61),1)) -> 5 | H18: 0.8333333333
A19: 3D model [ano/ne] | B19: 4 | C19: 1 | D19: =IF($C6="Min",_xlfn.RANK.EQ(C19,($C19,$F19,$C32,$F32,$C49,$F49,$C62),0),_xlfn.RANK.EQ(C19,($C19,$F19,$C32,$F32,$C49,$F49,$C62),1)) -> 3 | E19: 0.4166666667 | F19: 1 | G19: =IF($C6="Min",_xlfn.RANK.EQ(F19,($C19,$F19,$C32,$F32,$C49,$F49,$C62),0),_xlfn.RANK.EQ(F19,($C19,$F19,$C32,$F32,$C49,$F49,$C62),1)) -> 3 | H19: 0.4166666667
A20: Intuitivnost | B20: 5 | C20: 4 | D20: =IF($C7="Min",_xlfn.RANK.EQ(C20,($C20,$F20,$C33,$F33,$C50,$F50,$C63),0),_xlfn.RANK.EQ(C20,($C20,$F20,$C33,$F33,$C50,$F50,$C63),1)) -> 5 | E20: 0.5555555556 | F20: 5 | G20: =IF($C7="Min",_xlfn.RANK.EQ(F20,($C20,$F20,$C33,$F33,$C50,$F50,$C63),0),_xlfn.RANK.EQ(F20,($C20,$F20,$C33,$F33,$C50,$F50,$C63),1)) -> 7 | H20: 0.7777777778
A21: Dostupnost informací web | B21: 6 | C21: 5 | D21: =IF($C8="Min",_xlfn.RANK.EQ(C21,($C21,$F21,$C34,$F34,$C51,$F51,$C64),0),_xlfn.RANK.EQ(C21,($C21,$F21,$C34,$F34,$C51,$F51,$C64),1)) -> 7 | E21: 0.5833333333 | F21: 4 | G21: =IF($C8="Min",_xlfn.RANK.EQ(F21,($C21,$F21,$C34,$F34,$C51,$F51,$C64),0),_xlfn.RANK.EQ(F21,($C21,$F21,$C34,$F34,$C51,$F51,$C64),1)) -> 5 | H21: 0.4166666667
A22: Kontrolní a zkušební plán | B22: 7 | C22: 1 | D22: =IF($C9="Min",_xlfn.RANK.EQ(C22,($C22,$F22,$C35,$F35,$C52,$F52,$C65),0),_xlfn.RANK.EQ(C22,($C22,$F22,$C35,$F35,$C52,$F52,$C65),1)) -> 3 | E22: 0.1666666667 | F22: 1 | G22: =IF($C9="Min",_xlfn.RANK.EQ(F22,($C22,$F22,$C35,$F35,$C52,$F52,$C65),0),_xlfn.RANK.EQ(F22,($C22,$F22,$C35,$F35,$C52,$F52,$C65),1)) -> 3 | H22: 0.1666666667
A23: Návod | B23: 8 | C23: 3 | D23: =IF($C10="Min",_xlfn.RANK.EQ(C23,($C23,$F23,$C36,$F36,$C53,$F53,$C66),0),_xlfn.RANK.EQ(C23,($C23,$F23,$C36,$F36,$C53,$F53,$C66),1)) -> 6 | E23: 0.1666666667 | F23: 2 | G23: =IF($C10="Min",_xlfn.RANK.EQ(F23,($C23,$F23,$C36,$F36,$C53,$F53,$C66),0),_xlfn.RANK.EQ(F23,($C23,$F23,$C36,$F36,$C53,$F53,$C66),1)) -> 4 | H23: 0.1111111111
B24: =SUM(B16:B23) -> 36 | E24: =SUM(E16:E23) -> 4.333333333 | H24: =SUM(H16:H23) -> 3.916666667
A27: Kritérium | B27: Pořadí dle důležitosti | C27: Varianta C: Fieldwire | F27: Varianta D: Construction Manager
C28: Hodnota | D28: Pořadí | E28: Body | F28: Hodnota | G28: Pořadí | H28: Body
A29: Cena [Kč] | B29: =B3 -> 1 | C29: 1294 | D29: =IF($C3="Min",_xlfn.RANK.EQ(C29,($C16,$F16,$C29,$F29,$C46,$F46,$C59),0),_xlfn.RANK.EQ(C29,($C16,$F16,$C29,$F29,$C46,$F46,$C59),1)) -> 4 | E29: =$E3*D29 -> 0.8888888889 | F29: 335 | G29: =IF($C3="Min",_xlfn.RANK.EQ(F29,($C16,$F16,$C29,$F29,$C46,$F46,$C59),0),_xlfn.RANK.EQ(F29,($C16,$F16,$C29,$F29,$C46,$F46,$C59),1)) -> 5 | H29: =$E3*G29 -> 1.111111111
A30: Reakce podpory [Den] | B30: =B4 -> 2 | C30: 0.25 | D30: =IF($C4="Min",_xlfn.RANK.EQ(C30,($C17,$F17,$C30,$F30,$C47,$F47,$C60),0),_xlfn.RANK.EQ(C30,($C17,$F17,$C30,$F30,$C47,$F47,$C60),1)) -> 6 | E30: 1.166666667 | F30: 7 | G30: =IF($C4="Min",_xlfn.RANK.EQ(F30,($C17,$F17,$C30,$F30,$C47,$F47,$C60),0),_xlfn.RANK.EQ(F30,($C17,$F17,$C30,$F30,$C47,$F47,$C60),1)) -> 1 | H30: 0.1944444444
A31: Počet stažení v mobilu [tis] | B31: 3 | C31: 500 | D31: =IF($C5="Min",_xlfn.RANK.EQ(C31,($C18,$F18,$C31,$F31,$C48,$F48,$C61),0),_xlfn.RANK.EQ(C31,($C18,$F18,$C31,$F31,$C48,$F48,$C61),1)) -> 6 | E31: 1 | F31: 50 | G31: =IF($C5="Min",_xlfn.RANK.EQ(F31,($C18,$F18,$C31,$F31,$C48,$F48,$C61),0),_xlfn.RANK.EQ(F31,($C18,$F18,$C31,$F31,$C48,$F48,$C61),1)) -> 2 | H31: 0.3333333333
A32: 3D model [ano/ne] | B32: 4 | C32: 1 | D32: =IF($C6="Min",_xlfn.RANK.EQ(C32,($C19,$F19,$C32,$F32,$C49,$F49,$C62),0),_xlfn.RANK.EQ(C32,($C19,$F19,$C32,$F32,$C49,$F49,$C62),1)) -> 3 | E32: 0.4166666667 | F32: 0 | G32: =IF($C6="Min",_xlfn.RANK.EQ(F32,($C19,$F19,$C32,$F32,$C49,$F49,$C62),0),_xlfn.RANK.EQ(F32,($C19,$F19,$C32,$F32,$C49,$F49,$C62),1)) -> 1 | H32: 0.1388888889
A33: Intuitivnost | B33: 5 | C33: 2 | D33: =IF($C7="Min",_xlfn.RANK.EQ(C33,($C20,$F20,$C33,$F33,$C50,$F50,$C63),0),_xlfn.RANK.EQ(C33,($C20,$F20,$C33,$F33,$C50,$F50,$C63),1)) -> 3 | E33: 0.3333333333 | F33: 1 | G33: =IF($C7="Min",_xlfn.RANK.EQ(F33,($C20,$F20,$C33,$F33,$C50,$F50,$C63),0),_xlfn.RANK.EQ(F33,($C20,$F20,$C33,$F33,$C50,$F50,$C63),1)) -> 1 | H33: 0.1111111111
A34: Dostupnost informací web | B34: 6 | C34: 3 | D34: =IF($C8="Min",_xlfn.RANK.EQ(C34,($C21,$F21,$C34,$F34,$C51,$F51,$C64),0),_xlfn.RANK.EQ(C34,($C21,$F21,$C34,$F34,$C51,$F51,$C64),1)) -> 4 | E34: 0.3333333333 | F34: 1 | G34: =IF($C8="Min",_xlfn.RANK.EQ(F34,($C21,$F21,$C34,$F34,$C51,$F51,$C64),0),_xlfn.RANK.EQ(F34,($C21,$F21,$C34,$F34,$C51,$F51,$C64),1)) -> 1 | H34: 0.08333333333
A35: Kontrolní a zkušební plán | B35: 7 | C35: 1 | D35: =IF($C9="Min",_xlfn.RANK.EQ(C35,($C22,$F22,$C35,$F35,$C52,$F52,$C65),0),_xlfn.RANK.EQ(C35,($C22,$F22,$C35,$F35,$C52,$F52,$C65),1)) -> 3 | E35: 0.1666666667 | F35: 1 | G35: =IF($C9="Min",_xlfn.RANK.EQ(F35,($C22,$F22,$C35,$F35,$C52,$F52,$C65),0),_xlfn.RANK.EQ(F35,($C22,$F22,$C35,$F35,$C52,$F52,$C65),1)) -> 3 | H35: 0.1666666667
A36: Návod | B36: 8 | C36: 1 | D36: =IF($C10="Min",_xlfn.RANK.EQ(C36,($C23,$F23,$C36,$F36,$C53,$F53,$C66),0),_xlfn.RANK.EQ(C36,($C23,$F23,$C36,$F36,$C53,$F53,$C66),1)) -> 2 | E36: 0.05555555556 | F36: 0 | G36: =IF($C10="Min",_xlfn.RANK.EQ(F36,($C23,$F23,$C36,$F36,$C53,$F53,$C66),0),_xlfn.RANK.EQ(F36,($C23,$F23,$C36,$F36,$C53,$F53,$C66),1)) -> 1 | H36: 0.02777777778
B37: =SUM(B29:B36) -> 36 | E37: =SUM(E29:E36) -> 4.361111111 | H37: =SUM(H29:H36) -> 2.166666667
A44: Kritérium | B44: Pořadí dle důležitosti | C44: Varianta E: Mobile Field Manager | F44: Varianta F: PlanGrid
C45: Hodnota | D45: Pořadí | E45: Body | F45: Hodnota | G45: Pořadí | H45: Body
A46: Cena [Kč] | B46: =B3 -> 1 | C46: 0 | D46: =IF($C3="Min",_xlfn.RANK.EQ(C46,($C16,$F16,$C29,$F29,$C46,$F46,$C59),0),_xlfn.RANK.EQ(C46,($C16,$F16,$C29,$F29,$C46,$F46,$C59),1)) -> 6 | E46: =$E3*D46 -> 1.333333333 | F46: 1316 | G46: =IF($C3="Min",_xlfn.RANK.EQ(F46,($C16,$F16,$C29,$F29,$C46,$F46,$C59),0),_xlfn.RANK.EQ(F46,($C16,$F16,$C29,$F29,$C46,$F46,$C59),1)) -> 3 | H46: =$E3*G46 -> 0.6666666667
A47: Reakce podpory [Den] | B47: =B4 -> 2 | C47: 0.083 | D47: =IF($C4="Min",_xlfn.RANK.EQ(C47,($C17,$F17,$C30,$F30,$C47,$F47,$C60),0),_xlfn.RANK.EQ(C47,($C17,$F17,$C30,$F30,$C47,$F47,$C60),1)) -> 7 | E47: 1.361111111 | F47: 6 | G47: =IF($C4="Min",_xlfn.RANK.EQ(F47,($C17,$F17,$C30,$F30,$C47,$F47,$C60),0),_xlfn.RANK.EQ(F47,($C17,$F17,$C30,$F30,$C47,$F47,$C60),1)) -> 3 | H47: 0.5833333333
A48: Počet stažení v mobilu [tis] | B48: 3 | C48: 50 | D48: =IF($C5="Min",_xlfn.RANK.EQ(C48,($C18,$F18,$C31,$F31,$C48,$F48,$C61),0),_xlfn.RANK.EQ(C48,($C18,$F18,$C31,$F31,$C48,$F48,$C61),1)) -> 2 | E48: 0.3333333333 | F48: 500 | G48: =IF($C5="Min",_xlfn.RANK.EQ(F48,($C18,$F18,$C31,$F31,$C48,$F48,$C61),0),_xlfn.RANK.EQ(F48,($C18,$F18,$C31,$F31,$C48,$F48,$C61),1)) -> 6 | H48: 1
A49: 3D model [ano/ne] | B49: 4 | C49: 1 | D49: =IF($C6="Min",_xlfn.RANK.EQ(C49,($C19,$F19,$C32,$F32,$C49,$F49,$C62),0),_xlfn.RANK.EQ(C49,($C19,$F19,$C32,$F32,$C49,$F49,$C62),1)) -> 3 | E49: 0.4166666667 | F49: 1 | G49: =IF($C6="Min",_xlfn.RANK.EQ(F49,($C19,$F19,$C32,$F32,$C49,$F49,$C62),0),_xlfn.RANK.EQ(F49,($C19,$F19,$C32,$F32,$C49,$F49,$C62),1)) -> 3 | H49: 0.4166666667
A50: Intuitivnost | B50: 5 | C50: 1 | D50: =IF($C7="Min",_xlfn.RANK.EQ(C50,($C20,$F20,$C33,$F33,$C50,$F50,$C63),0),_xlfn.RANK.EQ(C50,($C20,$F20,$C33,$F33,$C50,$F50,$C63),1)) -> 1 | E50: 0.1111111111 | F50: 4 | G50: =IF($C7="Min",_xlfn.RANK.EQ(F50,($C20,$F20,$C33,$F33,$C50,$F50,$C63),0),_xlfn.RANK.EQ(F50,($C20,$F20,$C33,$F33,$C50,$F50,$C63),1)) -> 5 | H50: 0.5555555556
A51: Dostupnost informací web | B51: 6 | C51: 2 | D51: =IF($C8="Min",_xlfn.RANK.EQ(C51,($C21,$F21,$C34,$F34,$C51,$F51,$C64),0),_xlfn.RANK.EQ(C51,($C21,$F21,$C34,$F34,$C51,$F51,$C64),1)) -> 2 | E51: 0.1666666667 | F51: 2 | G51: =IF($C8="Min",_xlfn.RANK.EQ(F51,($C21,$F21,$C34,$F34,$C51,$F51,$C64),0),_xlfn.RANK.EQ(F51,($C21,$F21,$C34,$F34,$C51,$F51,$C64),1)) -> 2 | H51: 0.1666666667
A52: Kontrolní a zkušební plán | B52: 7 | C52: 0 | D52: =IF($C9="Min",_xlfn.RANK.EQ(C52,($C22,$F22,$C35,$F35,$C52,$F52,$C65),0),_xlfn.RANK.EQ(C52,($C22,$F22,$C35,$F35,$C52,$F52,$C65),1)) -> 1 | E52: 0.05555555556 | F52: 1 | G52: =IF($C9="Min",_xlfn.RANK.EQ(F52,($C22,$F22,$C35,$F35,$C52,$F52,$C65),0),_xlfn.RANK.EQ(F52,($C22,$F22,$C35,$F35,$C52,$F52,$C65),1)) -> 3 | H52: 0.1666666667
A53: Návod | B53: =B10 -> 8 | C53: 1 | D53: =IF($C10="Min",_xlfn.RANK.EQ(C53,($C23,$F23,$C36,$F36,$C53,$F53,$C66),0),_xlfn.RANK.EQ(C53,($C23,$F23,$C36,$F36,$C53,$F53,$C66),1)) -> 2 | E53: 0.05555555556 | F53: 2 | G53: =IF($C10="Min",_xlfn.RANK.EQ(F53,($C23,$F23,$C36,$F36,$C53,$F53,$C66),0),_xlfn.RANK.EQ(F53,($C23,$F23,$C36,$F36,$C53,$F53,$C66),1)) -> 4 | H53: 0.1111111111
B54: =SUM(B46:B53) -> 36 | E54: =SUM(E46:E53) -> 3.833333333 | H54: =SUM(H46:H53) -> 3.666666667
A57: Kritérium | B57: Pořadí dle důležitosti | C57: Varianta G: Vím o všem
C58: Hodnota | D58: Pořadí | E58: Body
A59: Cena [Kč] | B59: =B3 -> 1 | C59: 2490 | D59: =IF($C3="Min",_xlfn.RANK.EQ(C59,($C16,$F16,$C29,$F29,$C46,$F46,$C59),0),_xlfn.RANK.EQ(C59,($C16,$F16,$C29,$F29,$C46,$F46,$C59),1)) -> 2 | E59: =$E3*D59 -> 0.4444444444
A60: Reakce podpory [Den] | B60: =B4 -> 2 | C60: 7 | D60: =IF($C4="Min",_xlfn.RANK.EQ(C60,($C17,$F17,$C30,$F30,$C47,$F47,$C60),0),_xlfn.RANK.EQ(C60,($C17,$F17,$C30,$F30,$C47,$F47,$C60),1)) -> 1 | E60: 0.1944444444
A61: Počet stažení v mobilu [tis] | B61: 3 | C61: 1 | D61: =IF($C5="Min",_xlfn.RANK.EQ(C61,($C18,$F18,$C31,$F31,$C48,$F48,$C61),0),_xlfn.RANK.EQ(C61,($C18,$F18,$C31,$F31,$C48,$F48,$C61),1)) -> 1 | E61: 0.1666666667
A62: 3D model [ano/ne] | B62: 4 | C62: 0 | D62: =IF($C6="Min",_xlfn.RANK.EQ(C62,($C19,$F19,$C32,$F32,$C49,$F49,$C62),0),_xlfn.RANK.EQ(C62,($C19,$F19,$C32,$F32,$C49,$F49,$C62),1)) -> 1 | E62: 0.1388888889
A63: Intuitivnost | B63: 5 | C63: 2 | D63: =IF($C7="Min",_xlfn.RANK.EQ(C63,($C20,$F20,$C33,$F33,$C50,$F50,$C63),0),_xlfn.RANK.EQ(C63,($C20,$F20,$C33,$F33,$C50,$F50,$C63),1)) -> 3 | E63: 0.3333333333
A64: Dostupnost informací web | B64: 6 | C64: 4 | D64: =IF($C8="Min",_xlfn.RANK.EQ(C64,($C21,$F21,$C34,$F34,$C51,$F51,$C64),0),_xlfn.RANK.EQ(C64,($C21,$F21,$C34,$F34,$C51,$F51,$C64),1)) -> 5 | E64: 0.4166666667
A65: Kontrolní a zkušební plán | B65: 7 | C65: 0 | D65: =IF($C9="Min",_xlfn.RANK.EQ(C65,($C22,$F22,$C35,$F35,$C52,$F52,$C65),0),_xlfn.RANK.EQ(C65,($C22,$F22,$C35,$F35,$C52,$F52,$C65),1)) -> 1 | E65: 0.05555555556
A66: Návod | B66: 8 | C66: 3 | D66: =IF($C10="Min",_xlfn.RANK.EQ(C66,($C23,$F23,$C36,$F36,$C53,$F53,$C66),0),_xlfn.RANK.EQ(C66,($C23,$F23,$C36,$F36,$C53,$F53,$C66),1)) -> 6 | E66: 0.1666666667
B67: =SUM(B59:B66) -> 36 | E67: =SUM(E59:E66) -> 1.916666667
